bitfinex/quotes_ETHUSD_20260207
["timestamp","ask_amount","ask_price","bid_price","bid_amount"]
[1770479745703,1.21887922,2054.5,2053.6,0.97450511]
[1770479745930,0.54410672,2054.4,2053.7,0.81611524]
[1770479746096,0.54410672,2054.4,2053.6,0.97450511]
[1770479746296,1.76104431,2054.4,2053.6,2.19183373]
[1770479746922,1.76104431,2054.4,2053.6,0.97450511]
[1770479747223,0.002,2054.7,2054.3,8.16115241]
[1770479747426,0.002,2054.7,2054.3,0.97450511]
[1770479748419,0.002,2054.7,2054.0,7.1866473]
[1770479748420,0.002,2054.7,2054.0,8.40374454]
[1770479748824,0.002,2054.7,2053.6,1.21734594]
[1770479749015,0.002,2054.7,2053.7,1.21730182]
[1770479749526,0.002,2054.7,2053.6,3.01929003]
[1770479749827,0.002,2054.7,2053.7,1.21730619]
[1770479750128,0.002,2054.7,2053.8,0.30192611]
[1770479750520,0.002,2054.7,2053.9,0.97450511]
[1770479751636,0.002,2054.7,2054.1,0.97450511]
[1770479752123,0.002,2054.7,2053.8,2.49366799]
[1770479752420,5.88019725,2055.3,2054.3,8.16115241]
[1770479752421,1.21636744,2055.3,2054.3,8.16115241]
[1770479752645,1.21636744,2055.3,2054.4,0.97450511]
[1770479753621,1.21636744,2055.3,2054.4,8.74620393]
[1770479754122,1.21636744,2055.3,2054.1,8.74620393]
[1770479754526,1.21636744,2055.3,2054.1,9.96327388]
[1770479755222,1.21636744,2055.3,2054.1,8.74620393]
[1770479755424,1.65547753,2055.2,2054.1,7.77169882]
[1770479755823,1.65547753,2055.2,2054.1,0.001]
[1770479755824,1.11689602,2055.1,2054.1,0.001]
[1770479756006,0.002,2054.5,2054.1,0.001]
[1770479757122,0.002,2054.5,2053.9,0.001]
[1770479757701,2.23115944,2054.8,2053.9,0.001]
[1770479757702,1.21666342,2054.8,2053.9,0.001]
[1770479757902,1.92644473,2054.8,2054.1,7.77169882]
[1770479758930,0.70978131,2054.8,2054.1,8.98873454]
[1770479759121,1.21660788,2054.9,2054.1,8.98873454]
[1770479759306,1.21656496,2055.0,2054.1,8.98873454]
[1770479759505,1.21656496,2055.0,2054.1,9.96323965]
[1770479760212,1.21656496,2055.0,2054.1,7.77169882]
[1770479760547,1.21656496,2055.0,2054.1,9.96327219]
[1770479760734,1.85745234,2055.2,2054.5,7.77169882]
[1770479762736,1.85745234,2055.2,2053.9,0.001]
[1770479762910,2.87194836,2055.2,2054.0,1.21713685]
[1770479763110,1.21654501,2055.0,2054.0,1.21713685]
[1770479764006,1.21654501,2055.0,2053.9,8.98989196]
[1770479764240,1.21654501,2055.0,2053.9,9.96439707]
[1770479764538,1.21654501,2055.0,2053.9,8.989894]
[1770479764719,1.21654501,2055.0,2053.9,7.77269882]
[1770479764926,0.68564901,2054.9,2053.9,10.37581337]
[1770479765237,1.21666342,2054.8,2053.9,10.37581337]
[1770479765619,1.21666342,2054.8,2053.9,9.15861766]
[1770479765818,1.21666342,2054.8,2053.9,10.37581264]
[1770479766339,1.21666342,2054.8,2053.9,11.31956157]
[1770479766540,0.67689661,2054.7,2054.0,1.22940667]
[1770479767619,1.89366873,2054.7,2053.9,10.10236659]
[1770479768440,1.89366873,2054.7,2054.1,0.001]
[1770479768744,0.002,2054.5,2054.1,0.001]
[1770479769239,0.92587337,2055.0,2054.1,0.001]
[1770479769240,1.99028712,2055.1,2054.3,8.71544775]
[1770479769431,1.21652209,2055.1,2054.3,8.71544775]
[1770479769630,5.19344784,2055.4,2054.4,0.94374893]
[1770479769631,1.21636744,2055.3,2054.4,0.94374893]
[1770479769927,1.21636744,2055.3,2054.7,7.77169882]
[1770479770144,0.64098153,2055.2,2054.3,7.77169882]
[1770479770512,0.64098153,2055.2,2054.4,0.99523431]
[1770479770717,1.21636744,2055.3,2054.7,7.77169882]
[1770479771720,1.03430392,2055.1,2054.1,0.001]
[1770479773441,0.1024,2055.2,2054.1,0.001]
[1770479773625,1.21648581,2055.1,2054.1,0.001]
[1770479773946,0.61848291,2055.0,2054.1,1.48646616]
[1770479775420,0.61848291,2055.0,2054.1,2.48170047]
[1770479776347,0.61848291,2055.0,2054.1,1.48646616]
[1770479776646,1.21660421,2054.9,2054.1,0.001]
[1770479777155,1.21660421,2054.9,2054.3,7.77169882]
[1770479778543,1.21648581,2055.1,2054.3,7.77169882]
[1770479780545,4.86575908,2055.2,2054.3,7.77169882]
[1770479780752,1.07660063,2055.1,2054.3,8.77019699]
[1770479781764,0.002,2054.8,2054.3,8.77019699]
[1770479782862,0.002,2054.8,2054.3,9.98715607]
[1770479783460,1.21652572,2055.1,2054.3,10.98239038]
[1770479783651,1.21640172,2055.3,2054.7,7.77169882]
[1770479783847,1.21640172,2055.3,2054.7,7.13781173]
[1770479784559,1.21640172,2055.3,2054.4,1.58514232]
[1770479785459,1.21640172,2055.3,2054.4,2.80201759]
[1770479785837,1.21640172,2055.3,2054.5,0.99523431]
[1770479786028,1.85738588,2055.3,2054.4,1.58514232]
[1770479786435,1.21611616,2055.8,2055.1,7.77169882]
[1770479786640,1.21605417,2055.9,2055.1,7.77169882]
[1770479786860,0.62155212,2055.8,2055.1,8.5488687]
[1770479787262,1.21613075,2055.7,2054.9,1.21660421]
[1770479788231,1.83765851,2055.8,2054.9,1.21660421]
[1770479789441,1.83765851,2055.8,2054.8,2.21186878]
[1770479789969,1.83762763,2055.8,2054.8,2.21186878]
[1770479790199,1.83762763,2055.8,2054.9,1.48503227]
[1770479791268,1.83762763,2055.8,2054.9,2.48026658]
[1770479791474,1.83762763,2055.8,2055.0,1.21654501]
[1770479792647,2.76953155,2055.8,2054.7,7.77169882]
[1770479792950,0.76336473,2055.7,2054.9,1.21659596]
[1770479793267,0.76336473,2055.7,2054.9,2.21183027]
[1770479793437,1.97952787,2055.7,2054.9,2.21183027]
[1770479794462,2.91143179,2055.7,2054.8,1.21665625]
[1770479794656,2.91143179,2055.7,2054.7,8.64839213]
[1770479794657,1.67844203,2055.6,2054.7,8.98839639]
[1770479795363,0.74653811,2055.6,2054.7,7.77169882]
[1770479795564,2.150153,2055.5,2054.5,1.21783502]
[1770479796150,2.150153,2055.5,2054.5,0.001]
[1770479796151,1.21824908,2055.5,2054.5,0.001]
[1770479796365,0.90720414,2055.4,2054.5,0.001]
[1770479796585,0.90720414,2055.4,2054.5,1.21783636]
[1770479796771,0.90720414,2055.4,2054.5,0.001]
[1770479797153,0.90720414,2055.2,2054.5,0.001]
[1770479797782,1.21648581,2055.1,2054.5,0.001]
[1770479797976,0.60824291,2055.0,2054.5,0.001]
[1770479800485,1.21635291,2055.4,2054.5,0.95036173]
[1770479801394,1.21829,2055.5,2054.5,0.95036173]
[1770479801777,0.90720414,2055.4,2054.5,0.001]
[1770479801972,1.21829,2055.5,2054.5,0.001]
[1770479802192,0.002,2055.5,2055.0,0.94936173]
[1770479802372,0.002,2055.5,2055.0,1.65260001]
[1770479802773,0.002,2055.5,2054.6,2.16611443]
[1770479802971,0.002,2055.5,2054.8,2.1660247]
[1770479803169,0.002,2055.5,2054.8,2.16600036]
[1770479803384,0.002,2055.5,2054.9,0.94936173]
[1770479804098,1.16817034,2055.7,2054.9,0.94936173]
[1770479804288,0.60325978,2055.6,2054.9,2.16590826]
[1770479804598,1.21601245,2055.9,2054.9,2.16590826]
[1770479805899,1.21601245,2055.9,2055.0,0.94936173]
[1770479806195,1.21601245,2055.9,2054.9,1.21654653]
[1770479806196,2.12321659,2055.9,2054.8,4.86654242]
[1770479806780,1.21601245,2055.9,2054.9,0.94936173]
[1770479806971,0.62153386,2055.8,2055.0,0.58159041]
[1770479807501,0.62153386,2055.8,2054.8,1.21666342]
[1770479807801,1.528738,2055.8,2054.7,8.98837628]
[1770479808196,1.528738,2055.8,2054.7,9.93773801]
[1770479808197,1.21613075,2055.7,2054.7,9.93773801]
[1770479808588,1.21613075,2055.7,2054.7,9.93873801]
[1770479808790,0.002,2055.5,2054.8,1.48058054]
[1770479810307,0.002,2055.5,2054.9,1.21660421]
[1770479811004,0.002,2055.5,2054.9,2.16596594]
[1770479811675,1.83760773,2055.8,2055.1,0.94936173]
[1770479811989,0.1355088,2056.0,2055.1,0.94936173]
[1770479811990,1.21604947,2055.9,2055.1,0.94936173]
[1770479812504,1.21604947,2055.9,2055.2,2.16578835]
[1770479812722,1.21604947,2055.9,2055.2,0.94936173]
[1770479813006,1.83760013,2055.9,2055.2,0.94936173]
[1770479813683,0.62155066,2055.9,2055.2,0.94936173]
[1770479813881,1.35150381,2056.0,2055.2,0.94936173]
[1770479814908,1.35150381,2056.0,2055.1,1.21646476]
[1770479815085,1.35150381,2056.0,2055.1,2.16582649]
[1770479815290,1.35150381,2056.0,2055.2,0.94936173]
[1770479817011,1.35150381,2056.0,2055.2,2.1657881]
[1770479817184,0.62152382,2055.9,2055.2,3.09938041]
[1770479817502,0.62152382,2055.9,2055.2,0.93359231]
[1770479817710,0.62152382,2055.9,2055.1,1.21647792]
[1770479818008,1.52872796,2055.9,2055.0,7.17013501]
[1770479818181,0.90720414,2055.8,2054.9,1.216579]
[1770479818381,0.90720414,2055.8,2054.9,2.69007697]
[1770479819509,1.2161052,2055.8,2055.0,1.21654225]
[1770479819808,1.2161052,2055.8,2055.0,8.38667726]
[1770479820013,1.2161052,2055.8,2055.0,7.17013501]
[1770479821006,1.21604259,2055.9,2055.1,0.94936173]
[1770479821308,1.21604259,2055.9,2055.1,2.03032065]
[1770479821483,1.21604259,2055.9,2055.1,2.03132065]
[1770479821684,0.002,2055.6,2055.2,1.21642662]
[1770479822285,0.1355088,2056.0,2055.3,0.94936173]
[1770479822487,1.35146565,2056.0,2055.3,8.11949674]
[1770479822698,1.97297902,2056.0,2055.3,9.64787897]
[1770479822980,1.97297902,2056.0,2055.3,8.69851724]
[1770479823384,2.88018316,2056.0,2055.1,0.001]
[1770479824113,0.90720414,2055.9,2055.1,0.001]
[1770479826086,1.2160716,2055.8,2055.1,0.001]
[1770479827419,4.86271219,2056.5,2055.7,7.17013501]
[1770479827590,5.6206805,2056.5,2055.8,0.7170135]
[1770479827899,1.97362598,2056.5,2055.8,0.7170135]
[1770479828304,1.97362598,2056.5,2055.8,1.9330546]
[1770479828509,1.97362598,2056.5,2055.8,0.7170135]
[1770479828995,1.97362598,2056.5,2055.8,1.93308119]
[1770479829192,1.97362598,2056.5,2055.9,1.00780124]
[1770479829393,1.21565767,2056.5,2055.9,1.00780124]
[1770479830422,0.33389553,2056.7,2056.1,7.17013501]
[1770479830623,1.54943599,2056.7,2055.9,1.00780124]
[1770479830914,1.54943599,2056.7,2055.8,7.88714851]
[1770479830915,1.54943599,2056.7,2056.0,0.88949498]
[1770479831717,1.54943599,2056.7,2055.0,0.96808381]
[1770479831718,0.92637719,2056.5,2055.0,0.96808381]
[1770479831920,0.92637719,2056.2,2055.0,2.18459055]
[1770479832101,0.92637719,2056.2,2055.0,2.18459348]
[1770479832308,1.21589416,2056.1,2055.0,2.1845867]
[1770479832698,1.21589416,2056.1,2055.0,0.96808381]
[1770479832898,1.21589416,2056.1,2055.1,0.96908381]
[1770479833316,0.92637719,2056.0,2055.1,0.001]
[1770479834513,1.21601245,2055.9,2055.1,0.001]
[1770479834720,0.70064394,2055.8,2055.3,0.001]
[1770479836627,1.91674978,2055.8,2055.3,0.001]
[1770479836831,1.2157759,2056.3,2055.3,0.001]
[1770479838009,1.2157759,2056.3,2055.3,0.96908381]
[1770479839012,0.92637719,2056.2,2055.3,0.001]
[1770479839201,0.92637719,2056.1,2055.3,0.001]
[1770479840617,0.92637719,2056.1,2055.3,0.00018809]
[1770479841019,1.2159533,2056.0,2055.3,0.00018809]
[1770479845736,4.86381322,2056.1,2055.3,0.00018809]
[1770479845912,0.67904731,2056.0,2055.3,0.00018809]
[1770479846440,4.86381322,2056.1,2055.3,0.00018809]
[1770479846441,4.86381322,2056.1,2055.3,0.9682719]
[1770479846605,4.96528075,2056.4,2055.3,0.9682719]
[1770479846606,1.2157759,2056.4,2055.3,0.9682719]
[1770479846810,1.2157759,2056.4,2055.4,0.96808381]
[1770479847825,0.002,2056.5,2055.5,2.18433289]
[1770479848025,0.002,2056.5,2055.6,0.70495657]
[1770479848233,0.002,2056.5,2055.5,2.18433289]
[1770479848435,0.002,2056.5,2055.6,0.96808381]
[1770479850644,0.92837719,2056.5,2055.4,1.2162796]
[1770479851140,0.002,2056.5,2055.6,0.96808381]
[1770479854549,0.002,2056.5,2055.7,0.96808381]
[1770479858423,0.712877,2056.5,2055.7,0.96808381]
[1770479859624,1.21571678,2056.4,2055.5,0.93467524]
[1770479859953,0.91119183,2056.3,2055.3,0.93486333]
[1770479860654,0.91119183,2056.3,2055.3,0.70199278]
[1770479860858,0.91119183,2056.3,2055.3,0.00018809]
[1770479861027,0.91119183,2056.3,2055.5,0.001]
[1770479861738,1.21583503,2056.2,2055.5,0.001]
[1770479866764,1.21583503,2056.2,2055.5,0.00019567]
[1770479867640,1.21583503,2056.2,2055.5,0.93487091]
[1770479867961,1.21583503,2056.2,2055.7,0.93467524]
[1770479868733,0.712877,2056.5,2055.7,0.93467524]
[1770479868734,0.712877,2056.5,2055.7,8.10481025]
[1770479868934,1.54865246,2056.9,2056.2,8.10481025]
[1770479869141,1.54865246,2056.9,2056.3,0.93467524]
[1770479869460,0.33318727,2056.9,2056.4,0.93467524]
[1770479869663,1.5486151,2056.9,2056.4,0.93467524]
[1770479871544,1.5486151,2056.9,2056.5,0.93467524]
[1770479871545,0.33318727,2056.9,2056.5,0.93467524]
[1770479871870,1.21534221,2057.1,2056.5,0.93467524]
[1770479873474,4.86051164,2057.4,2056.5,0.93467524]
[1770479873766,0.002,2056.7,2056.5,0.93467524]
[1770479874170,0.002,2056.7,2056.3,0.81048103]
[1770479874376,0.002,2056.7,2056.1,1.21586116]
[1770479874677,0.002,2056.7,2056.2,1.21583167]
[1770479874852,0.002,2056.7,2056.3,2.15044667]
[1770479875168,0.002,2056.7,2056.3,0.93467524]
[1770479875474,0.002,2056.7,2056.3,2.15044679]
[1770479875971,0.002,2056.7,2056.4,0.70136898]
[1770479876149,0.002,2056.7,2056.3,2.15044679]
[1770479876344,0.002,2056.7,2056.3,0.93467524]
[1770479876667,0.002,2056.7,2056.2,1.21580139]
[1770479877170,0.002,2056.7,2055.7,1.21609561]
[1770479877370,0.002,2056.7,2055.8,1.46492285]
[1770479877545,0.002,2056.7,2055.8,2.68098562]
[1770479877740,0.002,2056.7,2055.8,1.21606277]
[1770479878477,1.21753945,2056.7,2055.7,5.79918769]
[1770479878650,1.21753945,2056.7,2055.8,0.93467524]
[1770479879838,1.21753945,2056.7,2055.7,1.21613075]
[1770479880273,1.21540052,2057.0,2056.2,0.93467524]
[1770479880463,1.21518495,2057.3,2056.2,0.93467524]
[1770479880667,1.21518495,2057.3,2056.4,0.93467524]
[1770479880866,0.69869052,2057.2,2056.4,1.24318788]
[1770479881375,1.60988235,2057.2,2056.1,2.15056]
[1770479881553,1.60988235,2057.2,2056.2,1.21583319]
[1770479881746,1.60988235,2057.2,2056.1,2.15053489]
[1770479881943,1.60988235,2057.2,2056.2,1.21583146]
[1770479882166,0.28250673,2057.1,2056.2,2.1505067]
[1770479882554,0.28250673,2057.1,2056.2,2.15048929]
[1770479882747,1.21536217,2057.0,2056.2,2.15048929]
[1770479883665,1.21536217,2057.0,2055.9,1.3323981]
[1770479883666,1.92116298,2057.0,2055.9,7.13108366]
[1770479883871,1.92116298,2057.0,2056.1,1.21589408]
[1770479884080,1.92116298,2057.0,2055.9,2.26707334]
[1770479884365,0.91119183,2056.9,2055.9,2.15064515]
[1770479884774,1.92116298,2057.0,2056.0,0.93467524]
[1770479885556,0.91119183,2056.9,2055.7,2.15080599]
[1770479885766,0.28323548,2056.8,2055.8,1.47733351]
[1770479886072,0.28323548,2056.8,2055.8,2.40336465]
[1770479886371,0.9976429,2056.7,2055.8,1.47733351]
[1770479886571,0.9976429,2056.7,2055.6,2.14221728]
[1770479886870,1.21559856,2056.6,2056.1,0.001]
[1770479887557,0.9976429,2056.5,2056.1,0.001]
[1770479887743,0.9976429,2056.5,2055.5,1.21644267]
[1770479887947,0.9976429,2056.5,2055.5,0.70100605]
[1770479888475,0.9976429,2056.5,2055.5,2.84328487]
[1770479888656,0.9976429,2056.5,2055.5,1.62703719]
[1770479888851,0.9976429,2056.5,2055.5,1.91725147]
[1770479888852,1.21571678,2056.4,2055.5,1.91725147]
[1770479889057,1.21571678,2056.4,2055.6,1.60427313]
[1770479889058,2.30981601,2056.4,2055.6,1.60427313]
[1770479889462,2.30981601,2056.4,2055.6,0.92603114]
[1770479890569,1.21570324,2056.5,2055.6,0.92603114]
[1770479891170,4.86263068,2056.7,2055.6,0.92603114]
[1770479891380,0.99953809,2056.6,2055.6,1.21618648]
[1770479891788,0.99953809,2056.6,2055.5,2.88755335]
[1770479891960,0.58621688,2056.5,2055.6,0.77526915]
[1770479892351,0.58621688,2056.5,2055.6,1.99145166]
[1770479893068,0.58621688,2056.5,2055.6,0.77526915]
[1770479893484,1.21571678,2056.4,2055.6,0.77526915]
[1770479893982,1.21571678,2056.4,2055.6,1.99142861]
[1770479894187,0.66648008,2056.3,2055.6,1.99142861]
[1770479894885,0.66648008,2056.3,2055.6,0.77526915]
[1770479895590,1.21583503,2056.2,2055.6,1.9914527]
[1770479895790,1.21583503,2056.2,2055.6,0.77526915]
[1770479896090,1.21583503,2056.2,2055.6,1.9914566]
[1770479896467,1.21583503,2056.2,2055.6,0.77526915]
[1770479896663,1.21583503,2056.2,2055.6,1.99145527]
[1770479897074,1.21583503,2056.2,2055.6,0.77526915]
[1770479898391,1.21583503,2056.2,2055.7,0.36628319]
[1770479898561,1.88228949,2056.3,2055.7,0.36628319]
[1770479898756,0.93522085,2056.2,2055.5,0.00019567]
[1770479899905,0.93522085,2056.2,2055.8,0.001]
[1770479900075,0.93522085,2056.2,2055.5,0.00019567]
[1770479900466,1.21589416,2056.1,2055.5,0.00019567]
[1770479901997,0.93522085,2056.0,2055.5,0.00019567]
[1770479902167,0.93522085,2056.0,2055.3,0.00018809]
[1770479902673,1.21601245,2055.9,2055.3,0.00018809]
[1770479902859,0.70152831,2055.8,2055.3,0.00018809]
[1770479904488,2.1513516,2055.7,2055.3,0.00018809]
[1770479905166,2.1513516,2055.7,2055.1,0.001]
[1770479905392,1.21613075,2055.7,2055.1,0.94914062]
[1770479907887,1.21613075,2055.7,2055.1,0.001]
[1770479908203,0.67819622,2055.6,2055.1,0.001]
[1770479908705,1.61341707,2055.6,2055.1,0.001]
[1770479908881,1.61341707,2055.6,2054.7,0.001]
[1770479908882,0.93522085,2055.5,2054.7,0.001]
[1770479909199,2.15152911,2055.4,2054.7,0.001]
[1770479909496,0.70167622,2055.3,2054.7,0.001]
[1770479911071,1.21642662,2055.2,2054.7,0.001]
[1770479912203,0.93522085,2055.1,2054.3,0.001]
[1770479913070,0.93522085,2054.9,2054.0,0.001]
[1770479913510,0.93522085,2054.9,2054.6,0.001]
[1770479913672,0.93522085,2054.9,2054.0,0.001]
[1770479915319,0.93522085,2054.7,2054.0,0.001]
[1770479915797,1.03762085,2054.6,2053.9,0.001]
[1770479916112,1.03762085,2054.6,2053.8,0.001]
[1770479916329,1.03762085,2054.6,2053.2,0.001]
[1770479916915,0.97097671,2054.2,2053.2,2.19597995]
[1770479917116,0.97097671,2054.5,2053.4,2.19485795]
[1770479917323,0.97097671,2054.5,2053.5,0.70648773]
[1770479917519,1.21690031,2054.4,2053.4,2.19485795]
[1770479918600,1.21678185,2054.6,2053.6,0.97737254]
[1770479919894,1.21678185,2054.6,2053.5,2.19476005]
[1770479919895,2.18775856,2054.6,2053.5,2.19476005]
[1770479920093,2.18775856,2054.6,2053.6,1.21736711]
[1770479920348,0.76632177,2054.5,2053.6,2.19473965]
[1770479922225,1.21690031,2054.4,2053.6,2.19473965]
[1770479923629,1.21690031,2054.4,2053.7,0.97737254]
[1770479924730,1.21690031,2054.4,2053.7,2.19466773]
[1770479925207,1.82508869,2054.7,2053.8,0.97737254]
[1770479925412,1.21670767,2054.8,2053.8,0.97737254]
[1770479926129,0.002,2054.4,2053.5,0.97737254]
[1770479926299,0.002,2054.4,2053.5,2.19477185]
[1770479926505,0.97297671,2054.4,2053.4,1.21846775]
[1770479927008,1.21695954,2054.3,2053.4,1.21846775]
[1770479927205,1.21695954,2054.3,2053.4,0.001]
[1770479929433,0.97097671,2054.3,2053.4,0.001]
[1770479929837,0.002,2054.4,2053.4,1.58735592]
[1770479930335,0.97297671,2054.4,2053.4,1.58735592]
[1770479931236,0.97097671,2054.2,2053.4,0.001]
[1770479931613,0.97097671,2054.0,2053.4,0.001]
[1770479932015,0.97097671,2054.0,2053.2,0.001]
[1770479934943,1.21719655,2053.9,2053.2,0.001]
[1770479935245,0.70569595,2053.8,2053.2,0.001]
[1770479937542,2.18829179,2053.7,2053.2,0.001]
[1770479937950,0.70569595,2053.8,2053.2,0.97837254]
[1770479938133,1.21722818,2053.9,2053.2,0.97837254]
[1770479938845,1.21722818,2053.9,2053.4,0.001]
[1770479939146,0.002,2053.8,2053.4,0.001]
[1770479939740,0.002,2053.8,2053.4,0.97837254]
[1770479941747,0.002,2053.8,2053.5,0.97737254]
[1770479941916,0.002,2053.8,2053.5,1.68396899]
[1770479942123,0.002,2054.0,2053.6,0.97737254]
[1770479942448,1.2189137,2054.4,2053.7,0.97737254]
[1770479943454,0.002,2054.4,2053.7,0.97737254]
[1770479943651,0.002,2054.4,2053.9,0.97737254]
[1770479945946,0.002,2054.4,2054.1,0.95968688]
[1770479946361,0.002,2054.4,2054.1,1.66422421]
[1770479948054,0.002,2054.4,2054.1,2.88127555]
[1770479948255,0.002,2054.4,2054.0,1.2171097]
[1770479948457,0.002,2054.4,2054.0,1.21710604]
[1770479948736,0.002,2054.4,2054.0,2.17679292]
[1770479949465,0.002,2054.4,2053.8,0.95968688]
[1770479949645,0.002,2054.4,2053.9,1.21718931]
[1770479949845,0.002,2054.4,2053.9,1.92178946]
[1770479950045,0.002,2054.4,2053.8,0.95968688]
[1770479950379,0.002,2054.4,2053.7,0.99254031]
[1770479951362,0.002,2054.4,2053.9,0.001]
[1770479951768,0.002,2054.2,2053.9,0.99354031]
[1770479952436,0.002,2054.2,2053.9,1.70153771]
[1770479955449,0.002,2054.4,2054.0,0.99254031]
[1770479957541,0.002,2054.4,2054.1,1.21707803]
[1770479957742,0.002,2054.4,2054.0,2.20963358]
[1770479960454,0.002,2054.4,2054.0,1.21709327]
[1770479960653,0.002,2054.4,2054.0,1.99581557]
[1770479960855,0.002,2054.4,2054.0,2.98835588]
[1770479961471,0.002,2054.4,2054.1,0.99254031]
[1770479961768,0.002,2054.6,2054.3,2.20949985]
[1770479963761,0.002,2054.9,2054.4,0.99254031]
[1770479963964,0.002,2054.9,2054.4,0.7077338]
[1770479964150,0.002,2054.9,2054.1,2.20961834]
[1770479964468,0.002,2054.9,2054.2,0.99254031]
[1770479965281,0.002,2054.9,2054.0,0.7787223]
[1770479965282,0.94648693,2054.9,2054.0,0.7787223]
[1770479965446,0.94648693,2054.9,2054.0,1.21713533]
[1770479965641,0.94648693,2054.9,2054.5,0.001]
[1770479965870,2.16115035,2054.8,2054.5,0.001]
[1770479966176,2.16115035,2054.8,2053.9,1.2181916]
[1770479966372,1.64746733,2054.7,2053.9,0.001]
[1770479966558,0.94648693,2054.6,2053.6,1.21833926]
[1770479966871,0.94648693,2054.6,2053.6,0.001]
[1770479968569,2.16132801,2054.5,2053.6,0.99354031]
[1770479968775,1.21882544,2054.6,2053.6,0.99354031]
[1770479968974,1.21879418,2054.6,2053.8,0.99254031]
[1770479969270,1.21879418,2054.6,2053.9,0.81781103]
[1770479969476,0.002,2054.6,2053.9,0.81781103]
[1770479969659,0.002,2054.6,2053.9,1.81035134]
[1770479970049,0.002,2054.6,2054.1,0.99254031]
[1770479970264,0.002,2054.6,2054.2,1.81035134]
[1770479970470,0.002,2054.6,2054.3,0.99254031]
[1770479970776,0.002,2054.6,2054.4,1.21690031]
[1770479971362,0.002,2054.6,2054.3,2.20945993]
[1770479971554,0.002,2054.6,2054.4,0.78952563]
[1770479972581,0.002,2054.6,2054.2,0.81781103]
[1770479972772,0.002,2054.6,2054.1,1.21703624]
[1770479973080,0.002,2054.6,2054.2,1.21701512]
[1770479975183,0.002,2054.6,2054.1,0.99254031]
[1770479976058,0.002,2054.6,2054.0,1.21713729]
[1770479976258,0.002,2054.6,2054.0,2.40568121]
[1770479977278,0.002,2054.6,2054.0,1.18854392]
[1770479977483,0.002,2054.6,2054.0,2.40567776]
[1770479977865,0.002,2054.6,2054.2,0.001]
[1770479978066,0.002,2054.4,2054.2,0.001]
[1770479991592,0.002,2054.4,2054.2,1.21801879]
[1770479991789,0.002,2054.4,2054.2,0.001]
[1770479996213,0.94097074,2054.4,2054.2,0.001]
[1770479996506,0.002,2054.4,2054.2,0.001]
[1770479996709,0.002,2054.6,2054.2,0.001]
[1770479997083,1.21860697,2054.9,2054.2,0.93157986]
[1770479997504,1.21860697,2054.9,2054.3,2.1475394]
[1770479997505,0.002,2054.9,2054.3,2.1475394]
[1770479997807,0.002,2054.9,2054.4,0.70163776]
[1770479999413,0.002,2054.9,2054.4,1.63221762]
[1770480002417,0.002,2054.7,2054.4,1.63221762]
[1770480003416,0.002,2054.9,2054.5,0.93057986]
[1770480003592,0.002,2055.3,2054.5,0.93057986]
[1770480003800,0.002,2055.3,2054.7,2.14730249]
[1770480004117,0.002,2055.3,2054.7,1.21672263]
[1770480004315,0.94097074,2055.3,2054.4,0.70163776]
[1770480004498,0.94097074,2055.3,2054.3,1.21695404]
[1770480004810,0.94097074,2055.3,2054.6,1.21675327]
[1770480005122,0.94097074,2055.3,2054.5,1.21679928]
[1770480005323,0.94097074,2055.3,2054.5,1.21683888]
[1770480005490,0.94097074,2055.3,2054.5,1.91834809]
[1770480005896,0.92071872,2055.1,2054.5,0.70150921]
[1770480006096,0.92071872,2055.1,2054.4,1.21689501]
[1770480006416,0.92071872,2055.1,2054.3,1.21692459]
[1770480006711,0.92071872,2055.1,2054.4,1.2169003]
[1770480007109,1.21642662,2055.2,2054.4,2.13925226]
[1770480007616,2.13912898,2055.3,2054.5,1.21683256]
[1770480007810,0.002,2055.3,2054.7,0.92235196]
[1770480011424,0.002,2055.3,2054.7,2.13907381]
[1770480012493,0.002,2055.3,2054.8,0.96394718]
[1770480013910,0.9383382,2055.3,2054.5,1.21684108]
[1770480014315,0.9383382,2055.3,2054.6,0.70483473]
[1770480014623,0.002,2055.1,2054.6,1.92261004]
[1770480015930,0.002,2055.1,2054.6,2.88655722]
[1770480016622,0.002,2055.1,2054.6,0.70583473]
[1770480017227,0.002,2055.1,2054.6,1.92260761]
[1770480017903,0.002,2055.1,2054.7,0.67899603]
[1770480018412,0.002,2055.1,2054.7,1.64294321]
[1770480018731,0.002,2055.1,2054.8,1.21666342]
[1770480019027,0.002,2055.1,2054.8,2.1806106]
[1770480021529,0.002,2055.1,2054.7,1.21669814]
[1770480021745,0.002,2055.1,2054.6,1.21776811]
[1770480022107,0.002,2055.1,2054.7,1.21671685]
[1770480022635,0.002,2055.1,2054.8,0.60848168]
[1770480023434,0.002,2055.1,2054.8,2.78908536]
[1770480024434,0.002,2055.5,2055.1,0.96394718]
[1770480025125,1.21825009,2055.5,2054.8,2.18060368]
[1770480025425,0.002,2055.5,2055.0,1.21654501]
[1770480025608,0.002,2055.5,2055.0,2.18049219]
[1770480026612,0.002,2055.5,2054.9,0.70472574]
[1770480026808,0.002,2055.5,2054.9,1.92132683]
[1770480027533,0.002,2055.5,2054.9,2.88527401]
[1770480027741,0.002,2055.5,2055.0,1.73922342]
[1770480027910,0.002,2055.3,2055.0,1.73922342]
[1770480028109,0.002,2055.5,2055.1,0.96394718]
[1770480029508,0.002,2055.5,2055.2,2.1803738]
[1770480030137,0.002,2055.8,2055.2,2.1803738]
[1770480030446,0.002,2055.8,2055.4,0.96394718]
[1770480031014,0.002,2055.8,2055.3,0.70462295]
[1770480032138,0.9383382,2055.8,2055.3,0.70462295]
[1770480032354,0.9383382,2055.8,2055.0,1.21651625]
[1770480032640,0.9383382,2055.8,2054.9,1.21657288]
[1770480032836,0.9383382,2055.8,2055.1,1.21647888]
[1770480033020,12.64193492,2056.3,2055.1,1.21647888]
[1770480033021,2.40618066,2056.9,2055.8,0.96394718]
[1770480033220,2.40618066,2056.9,2055.9,1.83817772]
[1770480033419,2.15180326,2056.9,2055.9,1.83817772]
[1770480034245,2.15180326,2056.9,2056.0,1.2159533]
[1770480034443,0.9363382,2056.8,2055.9,2.09020912]
[1770480034747,0.9363382,2056.8,2055.9,1.21600868]
[1770480035936,0.9363382,2056.8,2055.9,2.15480794]
[1770480036550,0.96444198,2057.0,2055.9,2.15480794]
[1770480037043,0.96444198,2057.0,2055.8,1.21603011]
[1770480037244,0.96444198,2057.0,2055.8,1.2160353]
[1770480037449,0.96444198,2056.8,2055.3,0.93879926]